Cogmind - Beta 9.2 @@@ ROGUE MODE // 2019.11.21 @ 22:20:39 Player: V1BEZ Result: Destroyed by G-34 Mercenary with Small Laser Performance ------------- Evolutions (1) 500 Regions Visited (3) 600 Robots Destroyed (29) 145 Value Destroyed (775) 775 Prototype IDs (0) 0 Alien Tech Used (0) 0 Bonus (0) 0 TOTAL SCORE: 2020 Bonus ------- None Cogmind --------- Core Integrity 0/400 Matter 249/450 Energy 99/100 System Corruption 1% Temperature Cool (6) Movement Core (150) Ox2 Location -9/Storage Parts ------- > --- POWER (1) -------- (None) > --- PROPULSION (2) --- (None) > --- UTILITY (3) ------ Small Storage Unit Large Matter Pod > --- WEAPON (3) ------- (None) > --- INVENTORY (6) ---- Ion Engine Aluminum Leg Aluminum Leg Light Armor Plating Peak State ------------ > --- POWER ------------ Ion Engine > --- PROPULSION ------- Light Treads Light Treads > --- UTILITY ---------- Small Storage Unit Large Matter Pod Integration Mediator > --- WEAPON ----------- Medium Laser Light Assault Rifle Plasma Cutter > --- INVENTORY -------- Light Assault Rifle [Rating: 11] Favorites ----------- Power Ion Engine Engine Ion Engine Propulsion Light Treads Treads Light Treads Leg Aluminum Leg Utility Small Storage Unit Device Integration Mediator Storage Small Storage Unit Weapon Assault Rifle Energy Gun Medium Laser Ballistic Gun Assault Rifle Ballistic Cannon Light Cannon Launcher Grenade Launcher Special Weapon Mining Laser Build | -11 -10 -9 -9 ------- Run | Scr Mat Mat Sto Slots Evolved 2 | . . 2 . Power . | . . . . Propulsion . | . . . . Utility 1 | . . 1 . Weapon 1 | . . 1 . Parts Attached 27 | 7 8 8 4 Power 3 | 1 1 1 . Engine 3 | 1 1 1 . Core . | . . . . Reactor . | . . . . Propulsion 7 | 2 3 . 2 Treads 4 | 2 . . 2 Leg 3 | . 3 . . Wheel . | . . . . Hover . | . . . . Flight . | . . . . Utility 3 | 1 1 1 . Device 1 | . . 1 . Storage 2 | 1 1 . . Processor . | . . . . Hackware . | . . . . Protection . | . . . . Artifact . | . . . . Weapon 14 | 3 3 6 2 Energy Gun 3 | 1 . 1 1 Energy Cannon . | . . . . Ballistic Gun 4 | 1 1 1 1 Ballistic Cannon 2 | . 1 1 . Launcher 2 | . 1 1 . Special Weapon 3 | 1 . 2 . Impact Weapon . | . . . . Slashing Weapon . | . . . . Piercing Weapon . | . . . . Special Melee Weapon . | . . . . Unidentified Prototypes . | . . . . Parts Lost 15 | . . 6 9 Power 2 | . . 1 1 Propulsion 4 | . . 1 3 Utility 1 | . . . 1 Weapon 8 | . . 4 4 Highest Loss Streak 8 | . . 6 8 Average Slot Usage (%) 89 | . 98 90 77 Engine 10 | . 14 10 8 Treads 13 | . 27 . 11 Leg 7 | . . 19 1 Device 6 | . . 10 8 Storage 23 | . 27 22 22 Energy Gun 3 | . . 1 8 Ballistic Gun 10 | . 14 8 10 Ballistic Cannon 5 | . 11 5 . Launcher 2 | . . 7 . Special Weapon 4 | . 2 4 5 Naked Turns . | . . . . Heaviest Build 22 | 13 17 22 20 Greatest Support 40 | 40 40 20 40 Greatest Overweight (x) 5 | . . 1 5 Average Overweight (x) . | . . . . Largest Inventory Capacity 6 | 6 6 6 6 Average Capacity 5 | 5 6 6 6 Most Carried 6 | 5 6 6 6 Average Carried 4 | 3 5 5 4 Final Capacity 6 | 6 6 6 6 Final Carried 6 | 5 6 3 4 Class Distribution -------------------- 67% | Mutant 32% | Gunner Dominant Class ---------------- Mutant | -10/Materials Gunner | -9/Materials Gunner | -9/Storage Resources | -11 -10 -9 -9 ----------- Run | Scr Mat Mat Sto Matter Collected 680 | 271 143 147 119 Remotely . | . . . . Salvage Created 864 | 11 263 265 325 Parts 69 | 4 14 27 24 Haulers Intercepted . | . . . . Recyclers Shooed 1 | . 1 . . Parts Field Recycled . | . . . . Retrieved Matter . | . . . . Parts Self-Destructed . | . . . . Prevented . | . . . . Kills | -11 -10 -9 -9 ------- Run | Scr Mat Mat Sto Combat Hostiles Destroyed 24 | . 6 11 7 Guns 12 | . 3 2 7 Cannons 6 | . 3 3 . AOE 6 | . . 6 . Classes Destroyed 9 | 1 4 4 . Worker 1 | . . 1 . Builder 1 | . . 1 . Tunneler 1 | 1 . . . Recycler 1 | . 1 . . Watcher 1 | . 1 . . Swarmer 6 | . 1 5 . Grunt 14 | . 5 4 5 Brawler 1 | . . 1 . Sentry 3 | . . 1 2 Best Kill Streak 7 | 1 4 7 3 Combat Bots Only 5 | . 3 5 3 Max Kills in Single Turn 3 | 1 1 3 2 Gunslinging . | . . . . Exploded 3 | . . 3 . Melee . | . . . . Uniques/NPCs Destroyed . | . . . . Combat | -11 -10 -9 -9 -------- Run | Scr Mat Mat Sto Damage Taken 1871 | . 428 604 839 Core 498 | . 93 110 295 Absorbed by Shields . | . . . . Core Remaining (%) 81 | 100 62 . . Volleys Fired 83 | 14 19 25 25 Largest 3 | 2 2 3 3 Hottest 100 | 100 55 100 93 Shots Fired 149 | 15 38 42 54 Gun 87 | 2 19 15 51 Cannon 24 | . 17 7 . Launcher 14 | . 2 12 . Special 24 | 13 . 8 3 Kinetic 82 | 1 36 19 26 Thermal 53 | 14 . 11 28 Explosive 14 | . 2 12 . Electromagnetic . | . . . . Robot Hit Streak 13 | 1 7 9 13 Robot Miss Streak 3 | . 3 2 3 Penetration Max . | . . . . Secondary Targets . | . . . . Shots Hit Robots 89 | 1 23 27 38 Core Hits 45 | 1 10 21 13 Critical Hits 2 | . 1 . 1 Critical Kills 1 | . 1 . . Critical Parts Destroyed 1 | . . . 1 Melee Attacks . | . . . . Impact . | . . . . Slashing . | . . . . Piercing . | . . . . Sneak Attacks . | . . . . Combat Hostiles . | . . . . Follow-up Attacks . | . . . . Damage Inflicted 1648 | 12 405 780 451 Guns 751 | 12 167 143 429 Cannons 235 | . 163 72 . Explosions 604 | . 75 529 . Melee . | . . . . Ramming . | . . . . Kinetic 705 | . 330 190 185 Thermal 339 | 12 . 61 266 Explosive 604 | . 75 529 . Electromagnetic . | . . . . Impact . | . . . . Slashing . | . . . . Piercing . | . . . . Highest Corruption 1 | . . . 1 Average Corruption 1 | . . . 1 Corruption Purged . | . . . . Effects 1 | . . . 1 Weapon Failures 1 | . . . 1 Overload Shots . | . . . . Overflow Damage 24 | . 6 18 . Projectiles 6 | . 6 . . Explosions 18 | . . 18 . Melee . | . . . . Knockbacks 2 | . 2 . . Impact . | . . . . Kinetic 2 | . 2 . . Secondary . | . . . . Self-Inflicted Damage 127 | . 34 93 . Shots 6 | . 1 5 . Rammed . | . . . . Targets Rammed . | . . . . Kicked . | . . . . Crushed . | . . . . Highest Temperature 202 | 80 8 63 202 Average Temperature 40 | 34 3 31 56 Received Heat Transfer 582 | . 87 114 381 Siege Activations . | . . . . Robots Corrupted . | . . . . Combat Hostiles . | . . . . Parts Fried . | . . . . Impact Corruptions . | . . . . Robots Melted . | . . . . Combat Hostiles . | . . . . Parts Melted 2 | . . 1 1 Heat Transferred 962 | 37 . 185 740 Parts Sabotaged . | . . . . Parts Stolen . | . . . . Parts Stripped . | . . . . Power Chain Reactions . | . . . . Missiles Intercepted . | . . . . Alert | -11 -10 -9 -9 ------- Run | Scr Mat Mat Sto Peak Influence 348 | 5 205 348 327 Average Influence 157 | 3 131 218 237 Maximum Alert Level 1 | . 1 1 1 Low Security (%) 60 | 100 81 46 22 Level 1 39 | . 18 53 77 Level 2 . | . . . . Level 3 . | . . . . Level 4 . | . . . . Level 5 . | . . . . High Security . | . . . . Max Security . | . . . . Squads Dispatched 9 | . 3 1 5 Investigation 3 | . . . 3 Extermination . | . . . . Reinforcement 4 | . 3 1 . Assault . | . . . . Garrison 2 | . . . 2 Intercept . | . . . . Construction Impeded 1 | . . 1 . Haulers Reinforced . | . . . . Stealth | -11 -10 -9 -9 --------- Run | Scr Mat Mat Sto Distress Signals . | . . . . Communications Jammed . | . . . . Distress Signals . | . . . . Times Spotted 39 | . 12 12 15 Peak Tracking Total 6 | . 5 5 6 Tactical Retreats 2 | . . . 2 Traps | -11 -10 -9 -9 ------- Run | Scr Mat Mat Sto Traps Triggered 1 | . . . 1 Indirectly . | . . . . Trap Hack Attempts . | . . . . Triggered . | . . . . Disarmed . | . . . . Reprogrammed . | . . . . Reused . | . . . . Traps Extracted . | . . . . Installed . | . . . . Triggered . | . . . . Machines | -11 -10 -9 -9 ---------- Run | Scr Mat Mat Sto Machines Disabled 2 | . . 2 . Max in Single Turn 1 | . . 1 . Machines Sabotaged . | . . . . Garrisons Compromised . | . . . . Overloaded Fab Kills . | . . . . Fab Network Shutdowns . | . . . . Hacking | -11 -10 -9 -9 --------- Run | Scr Mat Mat Sto Machines Accessed 4 | . . 1 3 Terminals 2 | . . 1 1 Fabricators . | . . . . Repair Stations . | . . . . Recycling Units 1 | . . . 1 Scanalyzers . | . . . . Garrison Access 1 | . . . 1 Total Hacks 12 | . . 4 8 Successful 5 | . . 1 4 Failed 7 | . . 3 4 Catastrophic 1 | . . 1 . Database Lockouts . | . . . . Manual . | . . . . Terminals 6 | . . 4 2 Fabricators . | . . . . Repair Stations . | . . . . Recycling Units 3 | . . . 3 Scanalyzers . | . . . . Garrison Access 3 | . . . 3 Terminal Hacks 1 | . . 1 . Branch Access Points 1 | . . 1 . Fabricator Hacks . | . . . . Repair Station Hacks . | . . . . Recycling Unit Hacks 3 | . . . 3 Recycle Component 1 | . . . 1 Process 1 | . . . 1 Report Inventory 1 | . . . 1 Scanalyzer . | . . . . Garrison Access Hacks 1 | . . . 1 Unlock Access 1 | . . . 1 Unauthorized Hacks . | . . . . Terminals . | . . . . Fabricators . | . . . . Repair Stations . | . . . . Recycling Units . | . . . . Scanalyzers . | . . . . Garrison Access . | . . . . Data Cores Recovered . | . . . . Used . | . . . . Hacking Detections 4 | . . 1 3 Full Trace Events 2 | . . . 2 Feedback Events 1 | . . . 1 Corruption 1 | . . . 1 Feedback Blocked . | . . . . Robot Schematics Acquired . | . . . . Robots Built . | . . . . Matter . | . . . . Time . | . . . . Total Robot Build Rating . | . . . . Part Schematics Acquired . | . . . . Parts Built . | . . . . Matter . | . . . . Time . | . . . . Total Part Build Rating . | . . . . Parts Repaired . | . . . . Time . | . . . . Parts Recycled 1 | . . . 1 Recycled Matter 16 | . . . 16 Retrieved Matter . | . . . . Retrieved Components . | . . . . Parts Scanalyzed . | . . . . Part Schematics Acquired . | . . . . Parts Damaged . | . . . . Bothacking | -11 -10 -9 -9 ------------ Run | Scr Mat Mat Sto Used RIF Installer . | . . . . Robots Hacked . | . . . . Non-combat . | . . . . Combat . | . . . . Robot Hacks Applied . | . . . . Relay Couplers Released . | . . . . Robots Rewired . | . . . . Allies Hacked . | . . . . Hacks Repelled . | . . . . Allies | -11 -10 -9 -9 -------- Run | Scr Mat Mat Sto Total Allies . | . . . . Largest Group . | . . . . Highest-Rated Group . | . . . . Highest-Rated Ally . | . . . . Total Orders . | . . . . Ally Attacks . | . . . . Total Damage . | . . . . Kills . | . . . . Allies Corrupted . | . . . . Allies Melted . | . . . . Intel | -11 -10 -9 -9 ------- Run | Scr Mat Mat Sto Robot Analysis Total . | . . . . Derelict Logs Recovered . | . . . . Drone Launches . | . . . . Drone Recoveries . | . . . . Exploration | -11 -10 -9 -9 ------------- Run | Scr Mat Mat Sto Turns Passed 1024 | 196 286 299 243 Spaces Moved 470 | 78 133 154 105 Core 43 | 8 . . 35 Treads 254 | 70 132 . 52 Legs 173 | . 1 154 18 Wheels . | . . . . Hover . | . . . . Flight . | . . . . Fastest Speed 50 | 50 120 120 150 Average Speed 148 | 148 159 134 156 Slowest Speed 300 | 160 160 150 300 Overloaded Moves . | . . . . Propulsion Burnouts . | . . . . Robots Hopped . | . . . . Cave-ins Triggered . | . . . . Exploration Rate (%) 15 | 3 28 14 17 Regions Visited 3 Branch Regions 1 Pre-discovered Areas . | . . . . Known Exits Taken 1 | . . 1 . Unknown Exits Taken 2 | 1 1 . . Scrap Searched . | . . . . Spaces Dug 2 | . . 2 . Terrain Destroyed 78 | 1 9 68 . Melee . | . . . . Projectile 5 | 1 . 4 . AOE 73 | . 9 64 . Actions | -11 -10 -9 -9 --------- Run | Scr Mat Mat Sto Total 618 | 117 166 194 141 Wait 12 | 8 2 2 . Move 467 | 77 132 153 105 Hop . | . . . . Pick Up 25 | 11 3 5 6 Fast Attach . | . . . . Attach 17 | 6 1 7 3 Detach . | . . . . Swap 10 | 1 7 1 1 Drop 4 | . 2 1 1 Fire 83 | 14 19 25 25 Melee . | . . . . Ram . | . . . . Kick . | . . . . Crush . | . . . . Escape Stasis . | . . . . Rewire . | . . . . Trap . | . . . . Miscellaneous . | . . . . Route ------- -11/Scrapyard -10/Materials -9/Materials (discovered 3 exits: Min / *Sto x2) -9/Storage (discovered 1 exit: Gar) History --------- Turn | Location | Event 5 | -11/Scrapyard | Discovered new exit (range 16) 197 | -11/Scrapyard | Entered Materials 315 | -10/Materials | Build established: Mutant 449 | -10/Materials | Discovered new exit (range 16) 483 | -10/Materials | Entered another Materials area 483 | -9/Materials | Evolved 2 slots: Utility x1, Weapon x1 626 | -9/Materials | Discovered new exit (range 15) 662 | -9/Materials | Identified exit to Mines 662 | -9/Materials | Identified exit to Storage 756 | -9/Materials | Lost 6 parts (1p1n4w) 782 | -9/Materials | Entered Storage 876 | -9/Storage | Identified exit to Garrison 907 | -9/Storage | Garrison activated, responded to threat 980 | -9/Storage | Core integrity fell below 50% 1008 | -9/Storage | Lost 8 parts (1p2n1u4w) 1021 | -9/Storage | Core integrity fell below 20% 1025 | -9/Storage | Destroyed by G-34 Mercenary with Small Laser Last Messages --------------- 00918_ G-34 Mercenary destroyed. 00923_ U-05 Engineer builds a Door. 00927_ G-34 Mercenary destroyed. 00928_ R-06 Scavenger collects Aluminum Leg. 00930_ Acquired 38 matter. 00931_ R-06 Scavenger collects Sml. Laser. 00934_ R-06 Scavenger collects Lgt. Assault Rifle. 00934_ Acquired 39 matter. 00948_ Lgt. Treads destroyed. 00954_ Hvy. Assault Rifle destroyed. 00956_ Med. Laser destroyed. 00957_ Lgt. Assault Rifle destroyed. 00962_ Lgt. Treads destroyed. 00965_ Ion Engine destroyed. 00966_ Y-45 Defender destroyed. 00975_ Beam Rifle destroyed. 00977_ Integration Mediator destroyed. 00988_ R-06 Scavenger collects Aluminum Leg. 01003_ R-06 Scavenger inserts Heat Sink into recycling unit. 01006_ R-06 Scavenger inserts Aluminum Leg into recycling unit. Map ----- +----------------------------------------------------+ | | | | | | | | | | | | | | | | | | | | | | | | | | | | | | | | | | | ?????????????????????????????????????????????????? | | ?????????????????????????????????????????????????? | | ?????????????????????????????????????????????????? | | ?????????????????????????????????????????????????? | | ?????????????????????????????????????#"##??##????? | | ???????????????####??????????????????# T#### ####? | | ???????????????# #################+### #? | | ???????????????# Y g # #? | | ???????????????# ! g @ g # """ #? | | ???????????????# g g # "G> #? | | ???????????????# ##############+###### """ #? | | ???????????????## ????????????# ## #? | | ???????????????????????????????# """ #####+#### | | ???????????????????????????????# """ ! / # | | ???????????????????????????????# """ %%##### ##+# | | ???????????????????????????????# #???# # ^ | | ???????????????????????????????# """ ""#???# + "Y | | ???????????????????????????????# """ Y"#???# #%"" | | ???????????????????????????????# """ ""#???# # | | ???????????????????????????????# #???# #### | | ????????????????????????????????+########???# #??? | | ????????????????????????????????????????????# #??? | | ????????????????????????????????????????????# #??? | | ????????????????????????????????????????????# #??? | | ?????????????????????????????????????# *### #### | | ?????????????????????????????? [%! + " | | ?????????????????????????????? = #T# | | ?????????????????????????????????+#### ######## | | ?????????????????????????????????????##+#????????? | | ?????????????????????????????????????????????????? | | ?????????????????????????????????????????????????? | | ?????????????????????????????????????????????????? | | ?????????????????????????????????????????????????? | +----------------------------------------------------+ Best States ------------- Heat Dissipation 28 Energy Generation 10 Energy Capacity 250 Matter Stores 298 Matter Capacity 450 Sight Range 16 Terrain Scan Density 10 Evasion (%) 40 Recoil Reduction 2 Item Schematics ----------------- None Robot Schematics ------------------ None Fabricated ------------ Nothing Alien Tech Used ----------------- None Achievements -------------- None Challenges ------------ None Game ------ Seed FluxLauncherRay Manual? 0 Play Time 00:17:40 Cumulative 2.6 hours Start 2019.11.21 @ 21:59:57 End 2019.11.21 @ 22:20:39 Sessions 1 Manual Loads 0 Difficulty Rogue Special Mode None Game No. 5 Rogue 5 Adventurer 0 Explorer 0 Win Type - Total 0 Types 0/0/0/0/0/0/0 Lore% 0 Gallery% 5 Achievement% 5 Wizard Run 0 Options --------- ASCII 0 Keyboard 0 Movement Mouse Keybinds 0 Fullscreen 1 Font 12/Terminus Map View 83x54 Tactical HUD 1 Map Filters NONE Filters NONE Steam 1 RUN: c35069f9-071c-46cf-b5ba-f85199be00fb